fUST/lending_fUST_20240703
["ID","MTS","AMOUNT","RATE_DAILY","PERIOD"]
[330947863,1719967841525,-500.0,0.00014044,2]
[330947864,1719967841534,-500.0,0.00014044,2]
[330947865,1719967841543,-501.86105742,0.00014044,2]
[330947866,1719967841553,-500.0,0.00014044,2]
[330947867,1719967841563,-500.0,0.00014044,2]
[330947868,1719967841573,-500.0,0.00014044,2]
[330947869,1719967841583,-500.0,0.00014044,2]
[330947870,1719967841593,-500.0,0.00014044,2]
[330947871,1719967841603,-183.79379664,0.00014044,2]
[330947872,1719967841612,-500.0,0.00014044,2]
[330947873,1719967841621,-500.0,0.00014044,2]
[330947874,1719967841630,-500.0,0.00014044,2]
[330947875,1719967841639,-511.11373766,0.00014044,2]
[330947876,1719967841650,-500.0,0.00014044,2]
[330947877,1719967841659,-789.83,0.00014044,2]
[330947878,1719967841668,-500.0,0.00014044,2]
[330947879,1719967841679,-500.0,0.00014044,2]
[330947880,1719967841688,-500.0,0.00014044,2]
[330947881,1719967841698,-500.0,0.00014044,2]
[330947882,1719967841707,-151.0,0.00014044,2]
[330947883,1719967841716,-151.0,0.00014044,2]
[330947884,1719967841726,-500.0,0.00014044,2]
[330947885,1719967841735,-151.0,0.00014044,2]
[330947886,1719967841745,-151.0,0.00014044,2]
[330947887,1719967841754,-163.37659732,0.00014044,2]
[330947888,1719967841763,-500.0,0.00014044,2]
[330947889,1719967841773,-500.0,0.00014044,2]
[330947890,1719967841782,-500.0,0.00014044,2]
[330947891,1719967841791,-500.0,0.00014044,2]
[330947892,1719967841801,-502.11658079,0.00014044,2]
[330947893,1719967841810,-500.0,0.00014044,2]
[330947894,1719967841819,-934.42,0.00014044,2]
[330947895,1719967841828,-502.25131364,0.00014044,2]
[330947896,1719967841837,-967.11,0.00014044,2]
[330947897,1719967841846,-500.0,0.00014044,2]
[330947898,1719967841855,-500.0,0.00014044,2]
[330947899,1719967841864,-520.4917152,0.00014044,2]
[330947900,1719967841873,-529.47140074,0.00014044,2]
[330947902,1719967841882,-500.0,0.00014044,2]
[330947903,1719967841894,-500.0,0.00014044,2]
[330947904,1719967841908,-176.046328,0.00014044,2]
[330947905,1719967841921,-500.0,0.00014044,2]
[330947906,1719967841934,-176.046328,0.00014044,2]
[330947908,1719967841947,-176.046328,0.00014044,2]
[330947909,1719967841960,-176.046328,0.00014044,2]
[330947910,1719967841972,-176.046328,0.00014044,2]
[330947911,1719967841985,-176.046328,0.00014044,2]
[330947912,1719967841998,-176.046328,0.00014044,2]
[330947913,1719967842009,-176.046328,0.00014044,2]
[330947914,1719967842022,-176.046328,0.00014044,2]
[330947915,1719967842035,-176.04632,0.00014044,2]
[330947916,1719967842047,-500.0,0.00014044,2]
[330947917,1719967842060,-500.0,0.00014044,2]
[330947918,1719967842072,-500.0,0.00014044,2]
[330947919,1719967842085,-498.87369042,0.00014044,2]
[330947920,1719967842100,-3105.4245445,0.00014045,2]
[330948000,1719967846237,-702.95848849,0.00014042,2]
[330948117,1719968391187,-300.0,0.00014041,2]
[330948118,1719968391207,-300.0,0.00014041,2]
[330948119,1719968391227,-583.07,0.00014042,2]
[330948120,1719968391245,-500.0,0.00014042,2]
[330948121,1719968391267,-801.39,0.00014042,2]
[330948122,1719968391289,-500.0,0.00014042,2]
[330948123,1719968391310,-500.0,0.00014042,2]
[330948124,1719968391330,-500.0,0.00014042,2]
[330948125,1719968391350,-500.0,0.00014042,2]
[330948126,1719968391370,-500.0,0.00014042,2]
[330948127,1719968391390,-500.0,0.00014042,2]
[330948128,1719968391410,-500.0,0.00014042,2]
[330948129,1719968391429,-500.0,0.00014042,2]
[330948130,1719968391449,-500.0,0.00014042,2]
[330948131,1719968391469,-500.0,0.00014042,2]
[330948132,1719968391489,-1384.52,0.00014042,2]
[330948133,1719968391509,-500.0,0.00014042,2]
[330948134,1719968391529,-500.0,0.00014042,2]
[330948135,1719968391549,-374.34070417,0.00014042,2]
[330948136,1719968391569,-153.22923732,0.00014042,2]
[330948137,1719968391590,-500.0,0.00014042,2]
[330948138,1719968391609,-500.0,0.00014042,2]
[330948139,1719968391630,-582.55,0.00014042,2]
[330948140,1719968391652,-760.99,0.00014042,2]
[330948141,1719968391672,-500.0,0.00014042,2]
[330948142,1719968391705,-982.64,0.00014042,2]
[330948143,1719968391732,-500.0,0.00014042,2]
[330948144,1719968391752,-500.0,0.00014042,2]
[330948145,1719968391773,-500.0,0.00014042,2]
[330948146,1719968391794,-1171.86,0.00014042,2]
[330948147,1719968391816,-916.46,0.00014042,2]
[330948148,1719968391839,-500.0,0.00014042,2]
[330948149,1719968391864,-4469.91,0.00014042,2]
[330948150,1719968391884,-500.0,0.00014042,2]
[330948151,1719968391904,-500.0,0.00014042,2]
[330948152,1719968391924,-681.63,0.00014042,2]
[330948153,1719968391945,-582.35,0.00014042,2]
[330948154,1719968391965,-500.0,0.00014042,2]
[330948155,1719968391986,-500.0,0.00014042,2]
[330948156,1719968392006,-351.13498108,0.00014042,2]
[330948157,1719968392026,-500.0,0.00014042,2]
[330948158,1719968392047,-1530.15,0.00014042,2]
[330948159,1719968392069,-500.0,0.00014042,2]
[330948160,1719968392091,-500.0,0.00014042,2]
[330948161,1719968392112,-500.0,0.00014042,2]
[330948162,1719968392132,-500.0,0.00014042,2]
[330948163,1719968392152,-154.53,0.00014042,2]
[330948164,1719968392176,-7740.38,0.00014042,2]
[330948165,1719968392196,-500.0,0.00014042,2]
[330948166,1719968392216,-500.0,0.00014042,2]
[330948167,1719968392238,-500.0,0.00014042,2]
[330948168,1719968392260,-500.0,0.00014042,2]
[330948169,1719968392285,-8962.67,0.00014042,2]
[330948170,1719968392306,-576.18,0.00014042,2]
[330948171,1719968392328,-500.0,0.00014042,2]
[330948172,1719968392352,-1057.13,0.00014042,2]
[330948173,1719968392379,-612.45,0.00014042,2]
[330948174,1719968392400,-2147.48,0.00014042,2]
[330948175,1719968392421,-509.09,0.00014042,2]
[330948176,1719968392442,-500.0,0.00014042,2]
[330948177,1719968392464,-3789.7,0.00014042,2]
[330948178,1719968392485,-500.0,0.00014042,2]
[330948179,1719968392505,-500.0,0.00014042,2]
[330948180,1719968392526,-684.31,0.00014042,2]
[330948181,1719968392547,-1017.03,0.00014042,2]
[330948182,1719968392568,-500.0,0.00014043,2]
[330948183,1719968392591,-500.0,0.00014043,2]
[330948184,1719968392612,-890.52,0.00014043,2]
[330948185,1719968392633,-545.34,0.00014043,2]
[330948186,1719968392655,-527.48,0.00014043,2]
[330948187,1719968392677,-500.0,0.00014043,2]
[330948188,1719968392701,-500.0,0.00014043,2]
[330948189,1719968392722,-500.0,0.00014043,2]
[330948190,1719968392742,-500.0,0.00014043,2]
[330948191,1719968392762,-454.2132306,0.00014043,2]
[330948192,1719968392786,-500.0,0.00014043,2]
[330948193,1719968392808,-500.0,0.00014043,2]
[330948194,1719968392829,-500.0,0.00014043,2]
[330948195,1719968392850,-500.0,0.00014043,2]
[330948196,1719968392871,-500.0,0.00014043,2]
[330948197,1719968393057,-500.0,0.00014043,2]
[330948198,1719968393079,-500.0,0.00014043,2]
[330948199,1719968393100,-500.0,0.00014043,2]
[330948200,1719968393120,-500.0,0.00014043,2]
[330948201,1719968393141,-7207.08,0.00014043,2]
[330948202,1719968393164,-556.36,0.00014043,2]
[330948203,1719968393187,-1374.37,0.00014043,2]
[330948204,1719968393208,-500.0,0.00014043,2]
[330948205,1719968393229,-800.15,0.00014043,2]
[330948206,1719968393249,-500.0,0.00014043,2]
[330948207,1719968393269,-509.76,0.00014044,2]
[330948208,1719968393293,-501.83450842,0.00014044,2]
[330948209,1719968393314,-500.0,0.00014044,2]
[330948210,1719968393334,-648.21,0.00014044,2]
[330948211,1719968393356,-500.0,0.00014044,2]
[330948212,1719968393377,-500.0,0.00014044,2]
[330948213,1719968393397,-500.0,0.00014044,2]
[330948214,1719968393418,-500.0,0.00014044,2]
[330948215,1719968393438,-500.0,0.00014044,2]
[330948216,1719968393460,-504.6,0.00014044,2]
[330948217,1719968393480,-500.0,0.00014044,2]
[330948218,1719968393502,-778.88,0.00014044,2]
[330948219,1719968393522,-500.0,0.00014044,2]
[330948220,1719968393542,-500.0,0.00014044,2]
[330948221,1719968393563,-500.0,0.00014044,2]
[330948222,1719968393584,-958.55,0.00014044,2]
[330948223,1719968393605,-500.0,0.00014044,2]
[330948224,1719968393626,-500.0,0.00014044,2]
[330948225,1719968393646,-508.30808108,0.00014044,2]
[330948226,1719968393666,-502.60970296,0.00014044,2]
[330948227,1719968393687,-500.0,0.00014044,2]
[330948228,1719968393708,-515.77032704,0.00014044,2]
[330948229,1719968393729,-500.0,0.00014044,2]
[330948230,1719968393750,-500.0,0.00014044,2]
[330948231,1719968393771,-500.0,0.00014044,2]
[330948232,1719968393792,-506.93,0.00014044,2]
[330948233,1719968393812,-500.0,0.00014044,2]
[330948234,1719968393833,-500.0,0.00014044,2]
[330948235,1719968393854,-500.0,0.00014044,2]
[330948236,1719968393874,-500.0,0.00014044,2]
[330948237,1719968393894,-505.10966939,0.00014044,2]
[330948238,1719968393914,-922.23,0.00014044,2]
[330948239,1719968393935,-502.45667512,0.00014044,2]
[330948240,1719968393956,-500.0,0.00014044,2]
[330948241,1719968393977,-500.0,0.00014044,2]
[330948242,1719968393999,-500.0,0.00014044,2]
[330948243,1719968394019,-500.0,0.00014044,2]
[330948244,1719968394040,-2054.99,0.00014044,2]
[330948245,1719968394062,-500.0,0.00014044,2]
[330948246,1719968394082,-756.92,0.00014044,2]
[330948247,1719968394105,-926.81,0.00014044,2]
[330948248,1719968394126,-2094.66,0.00014044,2]
[330948249,1719968394147,-1079.12,0.00014044,2]
[330948250,1719968394171,-500.0,0.00014044,2]
[330948251,1719968394193,-500.0,0.00014044,2]
[330948252,1719968394215,-500.0,0.00014044,2]
[330948253,1719968394235,-500.0,0.00014044,2]
[330948254,1719968394257,-967.63,0.00014044,2]
[330948255,1719968394279,-500.0,0.00014044,2]
[330948256,1719968394303,-500.0,0.00014044,2]
[330948257,1719968394325,-500.0,0.00014044,2]
[330948258,1719968394348,-895.48,0.00014044,2]
[330948259,1719968394372,-3566.79,0.00014044,2]
[330948260,1719968394395,-500.0,0.00014044,2]
[330948261,1719968394417,-500.0,0.00014044,2]
[330948262,1719968394439,-500.0,0.00014044,2]
[330948263,1719968394462,-500.0,0.00014044,2]
[330948264,1719968394482,-500.0,0.00014045,2]
[330948265,1719968394503,-500.0,0.00014045,2]
[330948266,1719968394525,-13914.05,0.00014045,2]
[330948267,1719968394546,-735.74,0.00014045,2]
[330948268,1719968394567,-500.0,0.00014045,2]
[330948269,1719968394588,-500.0,0.00014045,2]
[330948270,1719968394609,-500.0,0.00014045,2]
[330948271,1719968394629,-2377.44,0.00014045,2]
[330948272,1719968394650,-6091.37,0.00014045,2]
[330948273,1719968394671,-1329.26,0.00014045,2]
[330948274,1719968394695,-928.36,0.00014045,2]
[330948275,1719968394716,-928.36,0.00014045,2]
[330948276,1719968394737,-1029.91,0.00014045,2]
[330948277,1719968394758,-10782.61,0.00014046,2]
[330948278,1719968394778,-3427.92,0.00014046,2]
[330948279,1719968394803,-11627.33385832,0.00014086,2]
[330948280,1719968394822,-692.96583587,0.00014086,2]
[330948281,1719968394844,-122894.34318863,0.00014086,2]
[330948293,1719968891812,-300.0,0.00014038,2]
[330948294,1719968891840,-299.0,0.00014038,2]
[330948295,1719968891867,-75.07543962,0.00014039,2]
[330948296,1719968891898,-674.07543962,0.00014039,2]
[330948297,1719968917082,-701.0384572,0.00014039,2]
[330948298,1719968917130,-701.0384572,0.00014039,2]
[330948299,1719968921568,8000.0,0.00025,120]
[330948300,1719968942030,-300.0,0.00014038,2]
[330948301,1719968942238,-429.07999549,0.00014039,2]
[330948302,1719968942271,-568.80157616,0.00014039,2]
[330948303,1719968966847,-755.03762692,0.00014039,2]
[330948304,1719968966890,-564.57960597,0.00014039,2]
[330948306,1719968991865,-781.42997158,0.00014039,2]
[330948307,1719968992061,-467.84746748,0.00014039,2]
[330948320,1719969032578,-300.0,0.00014038,2]
[330948321,1719969032588,-7350.0,0.00014039,2]
[330948493,1719969267751,191.41819055,0.0002,30]
[330948495,1719969338984,202.25001118,0.00013941,2]
[330948496,1719969488364,163.9479206,0.00013938,2]
[330948499,1719969615829,690.49474105,0.00013554,2]
[330948500,1719969720298,202.25001118,0.00013938,2]
[330948501,1719970108457,-300.0,0.00014036,2]
[330948502,1719970108485,-300.0,0.00014036,2]
[330948503,1719970108513,-96.74693491,0.00014037,2]
[330948504,1719970108668,-259.11869224,0.00014037,2]
[330948505,1719970133526,-574.98712528,0.00014036,2]
[330948506,1719970133554,-140.87712218,0.00014036,2]
[330948507,1719970133607,-387.99287782,0.00014036,2]
[330948508,1719970133634,-44.92435009,0.00014037,2]
[330948509,1719970158528,-300.0,0.00014036,2]
[330948510,1719970158560,-438.83987696,0.00014036,2]
[330948511,1719970158597,-624.30388308,0.00014036,2]
[330948512,1719970183564,-491.90623996,0.00014036,2]
[330948513,1719970183591,-274.1965122,0.00014036,2]
[330948514,1719970183630,-225.8034878,0.00014036,2]
[330948515,1719970183656,-103.44488396,0.00014037,2]
[330948516,1719970208676,-300.0,0.00014036,2]
[330948517,1719970208711,-488.00977464,0.00014036,2]
[330948518,1719970208751,-242.28315097,0.00014036,2]
[330948612,1719970239625,-9366.17707439,0.00014036,2]
[330948613,1719970239636,-504.17868553,0.00014036,2]
[330948614,1719970239646,-505.83333884,0.00014036,2]
[330948615,1719970239657,-1066.73,0.00014036,2]
[330948616,1719970239667,-500.0,0.00014036,2]
[330948617,1719970239677,-5638.55229583,0.00014037,2]
[330948618,1719970239687,-500.0,0.00014037,2]
[330948619,1719970239697,-500.0,0.00014037,2]
[330948620,1719970239707,-802.93,0.00014037,2]
[330948621,1719970239718,-500.0,0.00014037,2]
[330948622,1719970239728,-488.71049637,0.00014037,2]
[330948623,1719970239738,-529.41,0.00014037,2]
[330948624,1719970239748,-500.0,0.00014037,2]
[330948625,1719970239759,-1459.89,0.00014037,2]
[330948626,1719970239768,-500.0,0.00014037,2]
[330948627,1719970239778,-593.22,0.00014037,2]
[330948628,1719970239788,-500.0,0.00014037,2]
[330948629,1719970239798,-768.22,0.00014037,2]
[330948630,1719970239808,-988.13,0.00014037,2]
[330948631,1719970239821,-1103.05119849,0.00014037,2]
[330948632,1719970239834,-2315.12880151,0.00014037,2]
[330948633,1719970239844,-500.0,0.00014037,2]
[330948634,1719970239854,-581.64,0.00014037,2]
[330948635,1719970239865,-500.0,0.00014037,2]
[330948636,1719970239875,-2058.0,0.00014037,2]
[330948637,1719970239886,-500.0,0.00014037,2]
[330948638,1719970239903,-500.0,0.00014037,2]
[330948639,1719970239913,-500.0,0.00014037,2]
[330948640,1719970239923,-500.0,0.00014037,2]
[330948641,1719970239933,-500.0,0.00014037,2]
[330948642,1719970239943,-709.87,0.00014037,2]
[330948643,1719970239954,-500.0,0.00014037,2]
[330948644,1719970239964,-1145.77,0.00014037,2]
[330948645,1719970239974,-666.87919803,0.00014037,2]
[330948646,1719970239989,-211.40080197,0.00014037,2]
[330948647,1719970239999,-430.31726398,0.00014037,2]
[330948668,1719970242195,-3853.35273602,0.00014037,2]
[330948669,1719970242205,-500.0,0.00014037,2]
[330948670,1719970242214,-500.0,0.00014037,2]
[330948671,1719970242223,-914.54,0.00014037,2]
[330948672,1719970242233,-500.0,0.00014037,2]
[330948673,1719970242242,-500.0,0.00014037,2]
[330948674,1719970242252,-523.48,0.00014037,2]
[330948675,1719970242261,-500.0,0.00014037,2]
[330948676,1719970242271,-500.0,0.00014037,2]
[330948677,1719970242280,-500.0,0.00014037,2]
[330948678,1719970242290,-500.0,0.00014037,2]
[330948679,1719970242300,-500.0,0.00014037,2]
[330948680,1719970242309,-500.0,0.00014037,2]
[330948681,1719970242323,-500.0,0.00014037,2]
[330948682,1719970242333,-500.0,0.00014037,2]
[330948683,1719970242342,-500.0,0.00014037,2]
[330948684,1719970242352,-500.0,0.00014037,2]
[330948685,1719970242362,-2109.14,0.00014037,2]
[330948686,1719970242372,-500.0,0.00014037,2]
[330948687,1719970242381,-500.0,0.00014037,2]
[330948688,1719970242391,-593.84,0.00014037,2]
[330948689,1719970242401,-500.0,0.00014037,2]
[330948690,1719970242410,-500.0,0.00014037,2]
[330948691,1719970242419,-2188.26,0.00014037,2]
[330948692,1719970242429,-500.0,0.00014037,2]
[330948693,1719970242439,-500.0,0.00014037,2]
[330948694,1719970242448,-500.0,0.00014037,2]
[330948695,1719970242457,-500.0,0.00014037,2]
[330948696,1719970242467,-504.58832158,0.00014037,2]
[330948697,1719970242477,-500.0,0.00014037,2]
[330948698,1719970242488,-500.0,0.00014037,2]
[330948699,1719970242498,-1134.49,0.00014037,2]
[330948700,1719970242507,-500.0,0.00014037,2]
[330948701,1719970242516,-157.85969961,0.00014037,2]
[330948702,1719970242526,-520.83,0.00014037,2]
[330948703,1719970242537,-500.0,0.00014037,2]
[330948704,1719970242546,-500.0,0.00014037,2]
[330948705,1719970242558,-500.0,0.00014037,2]
[330948706,1719970242568,-500.0,0.00014037,2]
[330948707,1719970242578,-500.0,0.00014037,2]
[330948708,1719970242588,-500.0,0.00014037,2]
[330948709,1719970242597,-266.92370242,0.00014037,2]
[330948723,1719970244281,-233.07629758,0.00014037,2]
[330948724,1719970244291,-1020.7,0.00014037,2]
[330948725,1719970244300,-2881.31821859,0.00014037,2]
[330948726,1719970244312,-1155.79358439,0.00014037,2]
[330948736,1719970247179,-3390.05819702,0.00014037,2]
[330948737,1719970247188,-521.42673857,0.00014037,2]
[330948738,1719970247197,-722.52,0.00014037,2]
[330948739,1719970247207,-500.0,0.00014037,2]
[330948740,1719970247217,-500.0,0.00014037,2]
[330948741,1719970247226,-505.08479797,0.00014037,2]
[330948742,1719970247236,-500.0,0.00014038,2]
[330948743,1719970247245,-500.0,0.00014038,2]
[330948744,1719970247254,-500.0,0.00014038,2]
[330948745,1719970247263,-500.0,0.00014038,2]
[330948746,1719970247272,-500.0,0.00014038,2]
[330948747,1719970247281,-500.0,0.00014038,2]
[330948748,1719970247290,-508.89038591,0.00014038,2]
[330948749,1719970247299,-500.0,0.00014038,2]
[330948750,1719970247308,-388.6131425,0.00014038,2]
[330948751,1719970247318,-500.0,0.00014038,2]
[330948752,1719970247328,-500.0,0.00014038,2]
[330948753,1719970247336,-500.0,0.00014038,2]
[330948754,1719970247345,-500.0,0.00014038,2]
[330948755,1719970247354,-500.0,0.00014038,2]
[330948756,1719970247364,-500.0,0.00014038,2]
[330948757,1719970247373,-500.0,0.00014038,2]
[330948758,1719970247382,-500.0,0.00014038,2]
[330948759,1719970247391,-502.01806864,0.00014038,2]
[330948760,1719970247399,-500.0,0.00014038,2]
[330948761,1719970247408,-500.0,0.00014038,2]
[330948762,1719970247417,-457.48401546,0.00014038,2]
[330948763,1719970247426,-500.0,0.00014038,2]
[330948764,1719970247435,-308.93,0.00014038,2]
[330948765,1719970247445,-431.99558573,0.00014038,2]
[330948766,1719970247454,-627.9,0.00014038,2]
[330948767,1719970247463,-579.6,0.00014038,2]
[330948768,1719970247472,-500.0,0.00014038,2]
[330948769,1719970247481,-500.0,0.00014038,2]
[330948770,1719970247490,-880.35,0.00014038,2]
[330948771,1719970247500,-500.0,0.00014038,2]
[330948772,1719970247510,-500.0,0.00014038,2]
[330948773,1719970247519,-248.59627238,0.00014038,2]
[330948774,1719970261592,287.87837498,0.00013938,2]
[330948775,1719970394453,150.0,0.00022,30]
[330948776,1719970472653,155.01314279,9.999e-05,2]
[330948779,1719970645181,209.49700172,0.00013936,2]
[330948780,1719970983539,155.34279108,9.999e-05,2]
[330948781,1719971203029,155.09128672,0.0001212,2]
[330948783,1719971336240,-300.0,0.00014034,2]
[330948784,1719971336270,-402.04025013,0.00014035,2]
[330948785,1719971336314,-102.28479482,0.00014035,2]
[330948786,1719971336347,-261.9322903,0.00014035,2]
[330948787,1719971360729,-300.0,0.00014034,2]
[330948788,1719971360756,-300.0,0.00014034,2]
[330948789,1719971360783,-92.46484223,0.00014035,2]
[330948790,1719971360810,-30.90055461,0.00014035,2]
[330948791,1719971360842,-405.53249319,0.00014035,2]
[330948792,1719971362266,522.0,0.00024,120]
[330948793,1719971385807,-67.62393546,0.00014035,2]
[330948794,1719971385835,-678.31941918,0.00014035,2]
[330948795,1719971385882,-134.16058082,0.00014035,2]
[330948796,1719971385912,-500.0,0.00014035,2]
[330948798,1719971385942,-91.93932819,0.00014035,2]
[330948800,1719971410971,-300.0,0.00014034,2]
[330948801,1719971411003,-412.72206459,0.00014035,2]
[330948802,1719971411031,-62.66215532,0.00014035,2]
[330948803,1719971411069,-197.19010779,0.00014035,2]
[330948805,1719971428342,154.90239274,9.999e-05,2]
[330948843,1719971439005,-244.04932104,0.00014035,2]
[330948844,1719971439015,-509.75490777,0.00014035,2]
[330948845,1719971439027,-513.17925165,0.00014035,2]
[330948846,1719971439037,-1462.79,0.00014035,2]
[330948847,1719971439047,-507.08108702,0.00014035,2]
[330948848,1719971439058,-500.0,0.00014035,2]
[330948849,1719971439069,-506.14006265,0.00014035,2]
[330948850,1719971439079,-506.80409915,0.00014035,2]
[330948851,1719971439089,-508.84648257,0.00014035,2]
[330948852,1719971439100,-783.7,0.00014035,2]
[330948853,1719971439110,-500.0,0.00014035,2]
[330948854,1719971439120,-1014.06,0.00014035,2]
[330948855,1719971439130,-505.5599295,0.00014035,2]
[330948856,1719971439140,-500.0,0.00014035,2]
[330948857,1719971439151,-1071.63,0.00014035,2]
[330948858,1719971439161,-3567.58,0.00014035,2]
[330948859,1719971439171,-1056.06686008,0.00014035,2]
[330948860,1719971439183,-1108.96313992,0.00014035,2]
[330948861,1719971439194,-517.80785817,0.00014035,2]
[330948862,1719971439204,-500.0,0.00014035,2]
[330948863,1719971439216,-512.01325066,0.00014035,2]
[330948865,1719971439226,-515.0877386,0.00014035,2]
[330948867,1719971439236,-681.3,0.00014035,2]
[330948869,1719971439247,-500.0,0.00014035,2]
[330948871,1719971439257,-509.25691266,0.00014035,2]
[330948872,1719971439267,-500.0,0.00014035,2]
[330948874,1719971439280,-500.0,0.00014035,2]
[330948877,1719971439290,-500.0,0.00014035,2]
[330948879,1719971439303,-508.91086623,0.00014035,2]
[330948880,1719971439313,-506.62904126,0.00014035,2]
[330948883,1719971439323,-520.52815777,0.00014035,2]
[330948884,1719971439333,-529.4144015,0.00014035,2]
[330948886,1719971439345,-1368.92,0.00014035,2]
[330948888,1719971439356,-500.0,0.00014035,2]
[330948890,1719971439368,-906.58,0.00014035,2]
[330948892,1719971439377,-500.0,0.00014035,2]
[330948894,1719971439387,-897.68,0.00014035,2]
[330948896,1719971439397,-500.0,0.00014035,2]
[330948898,1719971439408,-4225.75,0.00014035,2]
[330948900,1719971439418,-500.0,0.00014035,2]
[330948902,1719971439427,-503.4111714,0.00014035,2]
[330948904,1719971439437,-530.13,0.00014035,2]
[330948906,1719971439448,-503.42341992,0.00014035,2]
[330948908,1719971439458,-2101.02,0.00014035,2]
[330948910,1719971439468,-506.74963554,0.00014035,2]
[330948912,1719971439477,-503.04973182,0.00014035,2]
[330948914,1719971439487,-1826.95,0.00014035,2]
[330948916,1719971439496,-503.59605261,0.00014035,2]
[330948918,1719971439506,-569.94,0.00014035,2]
[330948920,1719971439516,-501.65662854,0.00014035,2]
[330948922,1719971439531,-506.39679252,0.00014035,2]
[330948924,1719971439542,-2185.42,0.00014035,2]
[330948926,1719971439551,-503.59856783,0.00014035,2]
[330948928,1719971439562,-504.02016666,0.00014035,2]
[330948930,1719971439577,-504.78238597,0.00014035,2]
[330948932,1719971439587,-500.0,0.00014035,2]
[330948934,1719971439597,-504.5694352,0.00014035,2]
[330948936,1719971439607,-500.66134445,0.00014035,2]
[330948938,1719971439618,-504.76052556,0.00014035,2]
[330948939,1719971439628,-260.59910813,0.00014035,2]
[330948941,1719971439638,-508.87096016,0.00014035,2]
[330948943,1719971439648,-502.61966029,0.00014035,2]
[330948945,1719971439658,-500.0,0.00014035,2]
[330948947,1719971439668,-1131.34,0.00014035,2]
[330948949,1719971439678,-231.44917163,0.00014035,2]
[330948951,1719971439687,-500.0,0.00014035,2]
[330948953,1719971439696,-503.84667219,0.00014035,2]
[330948955,1719971439706,-500.0,0.00014035,2]
[330948957,1719971439715,-500.0,0.00014035,2]
[330948959,1719971439725,-10130.69,0.00014035,2]
[330948961,1719971439735,-500.0,0.00014035,2]
[330948963,1719971439745,-1018.99,0.00014035,2]
[330948965,1719971439755,-555.25206838,0.00014035,2]
[330948967,1719971439765,-692.42,0.00014035,2]
[330948969,1719971439777,-565.51104031,0.00014035,2]
[330948971,1719971439787,-500.0,0.00014035,2]
[330948973,1719971439796,-2069.91403747,0.00014036,2]
[330948975,1719971439810,-764.03082835,0.00014036,2]
[330948977,1719971439820,-504.64937226,0.00014036,2]
[330948979,1719971439829,-503.53815361,0.00014036,2]
[330948981,1719971439838,-501.4154269,0.00014036,2]
[330948983,1719971439848,-507.60257035,0.00014036,2]
[330948985,1719971439858,-505.77605242,0.00014036,2]
[330948987,1719971439867,-609.77235273,0.00014036,2]
[330948989,1719971439876,-512.93799099,0.00014036,2]
[330948991,1719971439886,-589.83,0.00014036,2]
[330948993,1719971439896,-33.54291019,0.00014036,2]
[330948995,1719971439908,-487.69443698,0.00014036,2]
[330948997,1719971439918,-504.99660985,0.00014036,2]
[330948999,1719971439928,-500.0,0.00014036,2]
[330949001,1719971439938,-500.0,0.00014036,2]
[330949003,1719971439948,-500.0,0.00014036,2]
[330949005,1719971439958,-500.0,0.00014036,2]